[Event "Live Chess"]
[Site "Chess.com"]
[Date "2023.05.20"]
[Round "-"]
[White "jennybobby44"]
[Black "defenderalist"]
[Result "0-1"]
[WhiteElo "1848"]
[BlackElo "1612"]
[TimeControl "300"]
[EndTime "13:44:27 PDT"]
[Termination "defenderalist won by checkmate"]

1. Nf3 {[%clk 0:04:59.1]} 1... b6 {[%clk 0:04:56.3]} 2. g3 {[%clk 0:04:57.5]}
2... Bb7 {[%clk 0:04:55.7]} 3. Bg2 {[%clk 0:04:57.4]} 3... g6 {[%clk 0:04:54.2]}
4. d4 {[%clk 0:04:56.7]} 4... Bg7 {[%clk 0:04:53.4]} 5. O-O {[%clk 0:04:56.4]}
5... e6 {[%clk 0:04:52.2]} 6. c4 {[%clk 0:04:53.8]} 6... Ne7 {[%clk 0:04:50.8]}
7. b3 {[%clk 0:04:52.7]} 7... O-O {[%clk 0:04:46]} 8. Bb2 {[%clk 0:04:52.1]}
8... c5 {[%clk 0:04:43.4]} 9. e3 {[%clk 0:04:50.4]} 9... cxd4 {[%clk 0:04:41.1]}
10. exd4 {[%clk 0:04:46.7]} 10... Nbc6 {[%clk 0:04:38.6]} 11. a3 {[%clk
0:04:43.1]} 11... Nf5 {[%clk 0:04:37.1]} 12. Ra2 {[%clk 0:03:50.2]} 12... d5
{[%clk 0:04:30]} 13. Ne5 {[%clk 0:03:34.9]} 13... Nxe5 {[%clk 0:03:31.1]} 14.
dxe5 {[%clk 0:03:34.2]} 14... Qc7 {[%clk 0:03:22.7]} 15. cxd5 {[%clk 0:03:24.8]}
15... exd5 {[%clk 0:03:19.6]} 16. Bxd5 {[%clk 0:03:16.8]} 16... Rad8 {[%clk
0:03:17.6]} 17. Nc3 {[%clk 0:03:07.9]} 17... Bxe5 {[%clk 0:03:13.2]} 18. Nb5
{[%clk 0:02:50]} 18... Qb8 {[%clk 0:02:25.4]} 19. Bxf7+ {[%clk 0:02:17]} 19...
Kxf7 {[%clk 0:02:14.7]} 20. Qe2 {[%clk 0:02:13.9]} 20... Bxb2 {[%clk 0:02:07.2]}
21. Rxb2 {[%clk 0:02:13.3]} 21... Rfe8 {[%clk 0:01:49]} 22. Qc4+ {[%clk
0:02:06.6]} 22... Bd5 {[%clk 0:01:44.8]} 23. Qc3 {[%clk 0:02:04.2]} 23... Qe5
{[%clk 0:01:27.3]} 24. Qxe5 {[%clk 0:01:56.2]} 24... Rxe5 {[%clk 0:01:26]} 25.
Rd2 {[%clk 0:01:51.5]} 25... Rd7 {[%clk 0:00:58.6]} 26. f4 {[%clk 0:01:47.7]}
26... Ree7 {[%clk 0:00:43.8]} 27. Rfd1 {[%clk 0:01:26.9]} 27... Bc6 {[%clk
0:00:40.4]} 28. Nc3 {[%clk 0:01:21.2]} 28... Rxd2 {[%clk 0:00:38.9]} 29. Rxd2
{[%clk 0:01:21.1]} 29... Bb7 {[%clk 0:00:33.8]} 30. Kf2 {[%clk 0:01:17.4]} 30...
Ng7 {[%clk 0:00:26.9]} 31. h3 {[%clk 0:01:13.5]} 31... Ne6 {[%clk 0:00:25.7]}
32. Ne2 {[%clk 0:01:12.3]} 32... Nc5 {[%clk 0:00:24.6]} 33. Rb2 {[%clk 0:01:05]}
33... Ne4+ {[%clk 0:00:22.3]} 34. Ke1 {[%clk 0:01:00.2]} 34... Nxg3 {[%clk
0:00:21]} 35. Kf2 {[%clk 0:00:55.7]} 35... Nxe2 {[%clk 0:00:20.9]} 36. Rxe2
{[%clk 0:00:54.9]} 36... Rxe2+ {[%clk 0:00:20.5]} 37. Kxe2 {[%clk 0:00:54.8]}
37... Kf6 {[%clk 0:00:20]} 38. Ke3 {[%clk 0:00:54.4]} 38... Kf5 {[%clk 0:00:19]}
39. a4 {[%clk 0:00:53.6]} 39... Bd5 {[%clk 0:00:18.3]} 40. b4 {[%clk 0:00:52.8]}
40... Bb3 {[%clk 0:00:17.6]} 41. a5 {[%clk 0:00:52.4]} 41... bxa5 {[%clk
0:00:16.6]} 42. bxa5 {[%clk 0:00:52.3]} 42... a6 {[%clk 0:00:15.9]} 43. h4
{[%clk 0:00:51.2]} 43... Ba4 {[%clk 0:00:15.6]} 44. Kd4 {[%clk 0:00:50]} 44...
Bb5 {[%clk 0:00:14.7]} 45. Ke3 {[%clk 0:00:49.3]} 45... h5 {[%clk 0:00:13.3]}
46. Kf3 {[%clk 0:00:47.3]} 46... Bc6+ {[%clk 0:00:12.7]} 47. Kg3 {[%clk
0:00:46.8]} 47... Ke4 {[%clk 0:00:11.7]} 48. f5 {[%clk 0:00:44.9]} 48... Kxf5
{[%clk 0:00:10.7]} 49. Kh3 {[%clk 0:00:44.5]} 49... Kf4 {[%clk 0:00:09.7]} 50.
Kh2 {[%clk 0:00:44]} 50... Kg4 {[%clk 0:00:09.2]} 51. Kg1 {[%clk 0:00:43.1]}
51... Kxh4 {[%clk 0:00:08.9]} 52. Kh2 {[%clk 0:00:42.8]} 52... Kg5 {[%clk
0:00:08.8]} 53. Kg3 {[%clk 0:00:42.2]} 53... h4+ {[%clk 0:00:08.4]} 54. Kh3
{[%clk 0:00:41.7]} 54... Kh5 {[%clk 0:00:08.3]} 55. Kh2 {[%clk 0:00:40.7]} 55...
g5 {[%clk 0:00:08.2]} 56. Kh3 {[%clk 0:00:40]} 56... g4+ {[%clk 0:00:08.1]} 57.
Kh2 {[%clk 0:00:39.4]} 57... h3 {[%clk 0:00:07.5]} 58. Kg3 {[%clk 0:00:38.8]}
58... Kg5 {[%clk 0:00:07.2]} 59. Kf2 {[%clk 0:00:38]} 59... Kh4 {[%clk
0:00:06.8]} 60. Ke3 {[%clk 0:00:37.1]} 60... g3 {[%clk 0:00:06.5]} 61. Kd4
{[%clk 0:00:36.5]} 61... h2 {[%clk 0:00:06.4]} 62. Kc5 {[%clk 0:00:36.4]} 62...
h1=Q {[%clk 0:00:06]} 63. Kb6 {[%clk 0:00:35.1]} 63... Qd5 {[%clk 0:00:05.6]}
64. Kc7 {[%clk 0:00:34.3]} 64... Qb5 {[%clk 0:00:05.1]} 65. Kd6 {[%clk
0:00:33.6]} 65... Qxa5 {[%clk 0:00:04.8]} 66. Ke7 {[%clk 0:00:32.8]} 66... Qb5
{[%clk 0:00:04.2]} 67. Kf6 {[%clk 0:00:32.1]} 67... a5 {[%clk 0:00:04.1]} 68.
Ke6 {[%clk 0:00:30.9]} 68... a4 {[%clk 0:00:04]} 69. Kd6 {[%clk 0:00:30.5]}
69... a3 {[%clk 0:00:03.9]} 70. Ke6 {[%clk 0:00:30.4]} 70... a2 {[%clk
0:00:03.7]} 71. Kd6 {[%clk 0:00:30]} 71... a1=Q {[%clk 0:00:03.6]} 72. Ke6
{[%clk 0:00:29.5]} 72... Qae5+ {[%clk 0:00:03.3]} 73. Kf7 {[%clk 0:00:27.8]}
73... Qbd5+ {[%clk 0:00:03.2]} 74. Kg6 {[%clk 0:00:26.8]} 74... Qde4+ {[%clk
0:00:02.4]} 75. Kf7 {[%clk 0:00:24.6]} 75... Q4f5+ {[%clk 0:00:02]} 76. Kg8
{[%clk 0:00:23.2]} 76... Qef4 {[%clk 0:00:01.1]} 77. Kg7 {[%clk 0:00:22.3]}
77... Q4g4+ {[%clk 0:00:00.8]} 78. Kh6 {[%clk 0:00:21.4]} 78... Qfh5# {[%clk
0:00:00.7]} 0-1

[Event "Live Chess"]
[Site "Chess.com"]
[Date "2023.05.20"]
[Round "-"]
[White "lightningorderyt"]
[Black "Missedidea"]
[Result "0-1"]
[WhiteElo "522"]
[BlackElo "1801"]
[TimeControl "300"]
[EndTime "13:44:27 PDT"]
[Termination "Missedidea won by checkmate"]

1. d4 {[%clk 0:04:52.7]} 1... Nf6 {[%clk 0:04:58]} 2. Nc3 {[%clk 0:04:50.6]}
2... c5 {[%clk 0:04:55.9]} 3. e3 {[%clk 0:04:46]} 3... g6 {[%clk 0:04:54.2]} 4.
b3 {[%clk 0:04:44.2]} 4... Bg7 {[%clk 0:04:53]} 5. Bb2 {[%clk 0:04:43.3]} 5...
O-O {[%clk 0:04:50.7]} 6. Bc4 {[%clk 0:04:39]} 6... d5 {[%clk 0:04:48.3]} 7. Bd3
{[%clk 0:04:32.7]} 7... cxd4 {[%clk 0:04:43.8]} 8. exd4 {[%clk 0:04:31.7]} 8...
Nc6 {[%clk 0:04:41.9]} 9. Nf3 {[%clk 0:04:29.3]} 9... Bg4 {[%clk 0:04:38.7]} 10.
Na4 {[%clk 0:03:59.3]} 10... Re8 {[%clk 0:04:20.2]} 11. Qe2 {[%clk 0:03:46.9]}
11... e5 {[%clk 0:04:09.9]} 12. h3 {[%clk 0:03:42.6]} 12... Bxf3 {[%clk
0:04:06.1]} 13. Qxf3 {[%clk 0:03:39]} 13... e4 {[%clk 0:04:04.2]} 14. Bxe4
{[%clk 0:03:16.1]} 14... dxe4 {[%clk 0:03:58.1]} 15. Qc3 {[%clk 0:02:48.4]}
15... Nd5 {[%clk 0:03:52.2]} 16. Qc5 {[%clk 0:02:31.8]} 16... e3 {[%clk
0:03:42.7]} 17. c4 {[%clk 0:02:17.8]} 17... exf2+ {[%clk 0:03:40]} 18. Kf1
{[%clk 0:02:13.9]} 18... Ne3+ {[%clk 0:03:25.6]} 19. Kxf2 {[%clk 0:01:55.6]}
19... Qh4+ {[%clk 0:03:12.6]} 20. g3 {[%clk 0:01:49.9]} 20... Qe4 {[%clk
0:03:09.3]} 21. Rab1 {[%clk 0:01:19.1]} 21... Qg2+ {[%clk 0:03:05.8]} 22. Ke1
{[%clk 0:01:11.6]} 22... Nxc4+ {[%clk 0:02:51.9]} 23. Kd1 {[%clk 0:01:02.5]}
23... Qd2# {[%clk 0:02:49.1]} 0-1

[Event "Live Chess"]
[Site "Chess.com"]
[Date "2023.05.20"]
[Round "-"]
[White "blunderabit"]
[Black "Geomorph"]
[Result "1-0"]
[WhiteElo "1844"]
[BlackElo "1249"]
[TimeControl "300"]
[EndTime "13:44:27 PDT"]
[Termination "blunderabit won by resignation"]

1. e4 {[%clk 0:04:58.1]} 1... e5 {[%clk 0:04:57.9]} 2. Nf3 {[%clk 0:04:56]} 2...
Nc6 {[%clk 0:04:56.7]} 3. Bb5 {[%clk 0:04:55.2]} 3... Nf6 {[%clk 0:04:54.2]} 4.
O-O {[%clk 0:04:51.7]} 4... a6 {[%clk 0:04:45.9]} 5. Bxc6 {[%clk 0:04:21.6]}
5... dxc6 {[%clk 0:04:43.7]} 6. Nxe5 {[%clk 0:04:20.4]} 6... Qd4 {[%clk
0:04:41.3]} 7. Nf3 {[%clk 0:04:15.3]} 7... Bc5 {[%clk 0:04:35.1]} 8. Nxd4 {[%clk
0:04:11]} 8... Bxd4 {[%clk 0:03:54.9]} 9. c3 {[%clk 0:04:08.1]} 9... Bb6 {[%clk
0:03:53.2]} 10. d4 {[%clk 0:04:04.6]} 10... O-O {[%clk 0:03:51.6]} 11. e5 {[%clk
0:03:57.8]} 11... Nd5 {[%clk 0:03:50.4]} 12. c4 {[%clk 0:03:41.9]} 12... Ne7
{[%clk 0:03:48]} 13. Be3 {[%clk 0:03:37.6]} 13... Bf5 {[%clk 0:03:36.5]} 14. Nc3
{[%clk 0:03:33.8]} 14... Rad8 {[%clk 0:03:31.5]} 15. Qb3 {[%clk 0:03:08.8]}
15... Ng6 {[%clk 0:03:08.6]} 16. c5 {[%clk 0:03:03.2]} 1-0

[Event "Live Chess"]
[Site "Chess.com"]
[Date "2023.05.20"]
[Round "-"]
[White "Goblinbasher"]
[Black "SiDebanks"]
[Result "1-0"]
[WhiteElo "1234"]
[BlackElo "1357"]
[TimeControl "300"]
[EndTime "13:44:28 PDT"]
[Termination "Goblinbasher won on time"]

1. e4 {[%clk 0:04:56.4]} 1... c6 {[%clk 0:04:59.4]} 2. Nc3 {[%clk 0:04:52]} 2...
d5 {[%clk 0:04:59.3]} 3. exd5 {[%clk 0:04:48.5]} 3... cxd5 {[%clk 0:04:59.2]} 4.
d4 {[%clk 0:04:47.4]} 4... Nc6 {[%clk 0:04:56.9]} 5. Nf3 {[%clk 0:04:45]} 5...
Bg4 {[%clk 0:04:55.7]} 6. Be2 {[%clk 0:04:43]} 6... e6 {[%clk 0:04:53.6]} 7. Bf4
{[%clk 0:04:35]} 7... Nf6 {[%clk 0:04:51.6]} 8. Ne5 {[%clk 0:04:30.2]} 8... Bxe2
{[%clk 0:04:44.2]} 9. Nxe2 {[%clk 0:04:20.9]} 9... Nh5 {[%clk 0:04:33.8]} 10.
Nxc6 {[%clk 0:04:10]} 10... bxc6 {[%clk 0:04:28.9]} 11. Bd2 {[%clk 0:04:07.3]}
11... Bd6 {[%clk 0:04:14.8]} 12. c3 {[%clk 0:03:53]} 12... Nf6 {[%clk
0:03:50.1]} 13. Ng3 {[%clk 0:03:49.4]} 13... Qc7 {[%clk 0:03:48.3]} 14. O-O
{[%clk 0:03:46.9]} 14... O-O {[%clk 0:03:46]} 15. Qf3 {[%clk 0:03:31.2]} 15...
c5 {[%clk 0:03:16.7]} 16. Bh6 {[%clk 0:02:58.6]} 16... Bxg3 {[%clk 0:02:33.9]}
17. fxg3 {[%clk 0:02:50.3]} 17... Ne4 {[%clk 0:02:01.5]} 18. Be3 {[%clk
0:02:32.8]} 18... cxd4 {[%clk 0:01:53.5]} 19. cxd4 {[%clk 0:02:24.7]} 19... Rab8
{[%clk 0:01:23.6]} 20. Rac1 {[%clk 0:02:18.2]} 20... Qb7 {[%clk 0:01:18]} 21. b3
{[%clk 0:02:16.5]} 21... Qe7 {[%clk 0:01:14.3]} 22. Rc2 {[%clk 0:02:11.1]} 22...
Rfc8 {[%clk 0:01:09.8]} 23. Rfc1 {[%clk 0:02:09.3]} 23... Rxc2 {[%clk
0:01:08.1]} 24. Rxc2 {[%clk 0:02:07.8]} 24... g6 {[%clk 0:00:55]} 25. h4 {[%clk
0:01:50.1]} 25... Qd6 {[%clk 0:00:40.5]} 26. Kh2 {[%clk 0:01:45.2]} 26... f5
{[%clk 0:00:27.1]} 27. Bf4 {[%clk 0:01:29.1]} 27... Qd8 {[%clk 0:00:20.6]} 28.
Bxb8 {[%clk 0:01:27.3]} 28... Qxb8 {[%clk 0:00:20.5]} 29. Qf4 {[%clk 0:01:18.3]}
29... Qxf4 {[%clk 0:00:15.1]} 30. gxf4 {[%clk 0:01:17.1]} 30... Kf7 {[%clk
0:00:12.8]} 31. Rc7+ {[%clk 0:01:15.3]} 31... Kf6 {[%clk 0:00:11.7]} 32. Rxh7
{[%clk 0:01:12]} 32... Nc3 {[%clk 0:00:10]} 33. a4 {[%clk 0:01:09.6]} 33... Ne2
{[%clk 0:00:08.6]} 34. Rxa7 {[%clk 0:01:06.8]} 34... Nxd4 {[%clk 0:00:07.3]} 35.
Kg3 {[%clk 0:00:59.3]} 35... Nxb3 {[%clk 0:00:05.3]} 36. Rb7 {[%clk 0:00:56.8]}
36... Nd4 {[%clk 0:00:04.4]} 37. a5 {[%clk 0:00:55.1]} 37... Ne2+ {[%clk
0:00:03.8]} 38. Kf3 {[%clk 0:00:53.7]} 38... Nd4+ {[%clk 0:00:03.7]} 39. Kf2
{[%clk 0:00:51.1]} 39... Nc6 {[%clk 0:00:03.4]} 40. a6 {[%clk 0:00:49.4]} 40...
Na5 {[%clk 0:00:01.5]} 41. a7 {[%clk 0:00:47.2]} 41... Nxb7 {[%clk 0:00:00.9]}
42. a8=Q {[%clk 0:00:45.7]} 42... Nd6 {[%clk 0:00:00.8]} 43. Qf8+ {[%clk
0:00:43.5]} 1-0

[Event "Live Chess"]
[Site "Chess.com"]
[Date "2023.05.20"]
[Round "-"]
[White "Tushinskiy"]
[Black "JohanKjeldahl"]
[Result "1-0"]
[WhiteElo "2124"]
[BlackElo "1842"]
[TimeControl "300"]
[EndTime "13:44:34 PDT"]
[Termination "Tushinskiy won by resignation"]

1. d4 {[%clk 0:04:58.3]} 1... Nf6 {[%clk 0:04:58.1]} 2. c3 {[%clk 0:04:58.2]}
2... b6 {[%clk 0:04:54.1]} 3. Nf3 {[%clk 0:04:58.1]} 3... Bb7 {[%clk 0:04:52.8]}
4. Bf4 {[%clk 0:04:56.1]} 4... e6 {[%clk 0:04:48.8]} 5. Nbd2 {[%clk 0:04:54.6]}
5... Be7 {[%clk 0:04:47.4]} 6. Bg3 {[%clk 0:04:53.6]} 6... d5 {[%clk 0:04:44]}
7. Qc2 {[%clk 0:04:53.5]} 7... O-O {[%clk 0:04:42.4]} 8. e3 {[%clk 0:04:53]}
8... c5 {[%clk 0:04:41.3]} 9. Bd3 {[%clk 0:04:52.3]} 9... Nbd7 {[%clk
0:04:38.4]} 10. O-O {[%clk 0:04:51.8]} 10... h6 {[%clk 0:04:37.3]} 11. Rae1
{[%clk 0:04:51]} 11... Rc8 {[%clk 0:04:35.6]} 12. Ne5 {[%clk 0:04:50.3]} 12...
Nxe5 {[%clk 0:04:24.3]} 13. dxe5 {[%clk 0:04:50.2]} 13... Nh5 {[%clk 0:04:22.1]}
14. f4 {[%clk 0:04:48]} 14... d4 {[%clk 0:04:16]} 15. exd4 {[%clk 0:04:42]}
15... cxd4 {[%clk 0:04:14]} 16. c4 {[%clk 0:04:41.2]} 16... Nxg3 {[%clk
0:04:00.9]} 17. hxg3 {[%clk 0:04:40.1]} 17... b5 {[%clk 0:03:57.4]} 18. b3
{[%clk 0:04:39.1]} 18... Bb4 {[%clk 0:03:51.1]} 19. Re2 {[%clk 0:04:36.8]} 19...
Bc3 {[%clk 0:03:37.4]} 20. Ne4 {[%clk 0:04:32]} 20... b4 {[%clk 0:03:35.8]} 21.
Ref2 {[%clk 0:04:20.1]} 21... Bxe4 {[%clk 0:03:32.4]} 22. Bxe4 {[%clk 0:04:19]}
22... a5 {[%clk 0:03:28.4]} 23. Bd3 {[%clk 0:04:15.7]} 23... Qd7 {[%clk
0:03:21.1]} 24. Qe2 {[%clk 0:04:14.1]} 24... a4 {[%clk 0:03:13.1]} 25. Qe4
{[%clk 0:04:12.3]} 25... g6 {[%clk 0:03:09.3]} 26. g4 {[%clk 0:04:10.6]} 26...
axb3 {[%clk 0:03:01.6]} 27. axb3 {[%clk 0:04:09.4]} 27... Qc6 {[%clk 0:02:56.7]}
28. Qe2 {[%clk 0:04:07.7]} 28... Ra8 {[%clk 0:02:51.7]} 29. f5 {[%clk
0:04:06.7]} 29... exf5 {[%clk 0:02:48]} 30. gxf5 {[%clk 0:04:06.6]} 30... Qb6
{[%clk 0:01:59.5]} 31. Qg4 {[%clk 0:04:01.3]} 31... Kg7 {[%clk 0:01:52.6]} 32.
f6+ {[%clk 0:03:57.8]} 32... Kh7 {[%clk 0:01:48.6]} 33. e6 {[%clk 0:03:56.7]}
33... Qxe6 {[%clk 0:01:44.9]} 34. Bxg6+ {[%clk 0:03:53.2]} 34... Kh8 {[%clk
0:01:40.1]} 35. Qh5 {[%clk 0:03:51.3]} 35... Qe3 {[%clk 0:01:37]} 36. Be4 {[%clk
0:03:32.8]} 36... Be1 {[%clk 0:01:23]} 37. Bxa8 {[%clk 0:03:28.9]} 37... Bxf2+
{[%clk 0:01:17.5]} 38. Rxf2 {[%clk 0:03:27.7]} 38... Rxa8 {[%clk 0:01:15.8]} 39.
Qxf7 {[%clk 0:03:21.1]} 39... Ra1+ {[%clk 0:01:14]} 40. Kh2 {[%clk 0:03:20.3]}
40... Qe5+ {[%clk 0:01:09.5]} 41. g3 {[%clk 0:03:18.3]} 41... Qh5+ {[%clk
0:01:06.8]} 42. Qxh5 {[%clk 0:03:16.7]} 1-0

[Event "Live Chess"]
[Site "Chess.com"]
[Date "2023.05.20"]
[Round "-"]
[White "TheSmoulderingMaster"]
[Black "HoarseyHorsey"]
[Result "1-0"]
[WhiteElo "1732"]
[BlackElo "1399"]
[TimeControl "300"]
[EndTime "13:44:45 PDT"]
[Termination "TheSmoulderingMaster won by resignation"]

1. e4 {[%clk 0:04:59.3]} 1... c5 {[%clk 0:04:58.4]} 2. Nf3 {[%clk 0:04:58.1]}
2... e6 {[%clk 0:04:57.8]} 3. d4 {[%clk 0:04:57.1]} 3... cxd4 {[%clk 0:04:57.3]}
4. Nxd4 {[%clk 0:04:56.6]} 4... Nf6 {[%clk 0:04:56.8]} 5. Nc3 {[%clk 0:04:55.8]}
5... Nc6 {[%clk 0:04:56.2]} 6. Bg5 {[%clk 0:04:52.2]} 6... h6 {[%clk 0:04:51.3]}
7. Bh4 {[%clk 0:04:46.3]} 7... Be7 {[%clk 0:04:49.9]} 8. Bc4 {[%clk 0:04:43.6]}
8... O-O {[%clk 0:04:47.7]} 9. O-O {[%clk 0:04:42.1]} 9... Ne5 {[%clk
0:04:46.1]} 10. Bb3 {[%clk 0:04:40.6]} 10... a6 {[%clk 0:04:43.7]} 11. Kh1
{[%clk 0:04:38]} 11... b5 {[%clk 0:04:39.7]} 12. f4 {[%clk 0:04:29.6]} 12... Nc6
{[%clk 0:04:37.6]} 13. e5 {[%clk 0:04:25.7]} 13... Nd5 {[%clk 0:04:33.3]} 14.
Ne4 {[%clk 0:04:24.1]} 14... Bxh4 {[%clk 0:04:28.3]} 15. Nf3 {[%clk 0:04:10.4]}
15... Be7 {[%clk 0:04:23]} 16. f5 {[%clk 0:04:00.8]} 16... d6 {[%clk 0:04:04.5]}
17. f6 {[%clk 0:03:55.9]} 17... gxf6 {[%clk 0:03:56]} 18. Bxd5 {[%clk
0:03:50.1]} 18... exd5 {[%clk 0:03:49.2]} 19. exf6 {[%clk 0:03:49.2]} 19... Bxf6
{[%clk 0:03:46.6]} 20. Qxd5 {[%clk 0:03:47.2]} 20... Be6 {[%clk 0:03:43.4]} 21.
Qxc6 {[%clk 0:03:45.2]} 21... Bxb2 {[%clk 0:03:28.2]} 22. Rad1 {[%clk
0:03:42.8]} 22... d5 {[%clk 0:03:13.2]} 23. Ng3 {[%clk 0:03:34.3]} 23... Rc8
{[%clk 0:02:53.9]} 24. Qb7 {[%clk 0:03:24.9]} 24... Rxc2 {[%clk 0:02:49.7]} 25.
Qxa6 {[%clk 0:03:13]} 25... Qd7 {[%clk 0:02:41.5]} 26. Rb1 {[%clk 0:03:05.7]}
26... Rfc8 {[%clk 0:02:30.2]} 27. Nh5 {[%clk 0:02:51.9]} 27... Bg4 {[%clk
0:02:05.5]} 28. Rxb2 {[%clk 0:02:46.9]} 28... Qe6 {[%clk 0:01:32]} 29. Qxe6
{[%clk 0:02:38.4]} 29... fxe6 {[%clk 0:01:25.5]} 30. Rxc2 {[%clk 0:02:37]} 30...
Rxc2 {[%clk 0:01:25]} 31. Nf6+ {[%clk 0:02:35.6]} 1-0

[Event "Live Chess"]
[Site "Chess.com"]
[Date "2023.05.20"]
[Round "-"]
[White "OSmith06"]
[Black "rideuv21"]
[Result "0-1"]
[WhiteElo "1662"]
[BlackElo "1819"]
[TimeControl "300"]
[EndTime "13:44:46 PDT"]
[Termination "rideuv21 won by resignation"]

1. e4 {[%clk 0:04:47]} 1... c5 {[%clk 0:04:59.9]} 2. Nf3 {[%clk 0:04:41.3]} 2...
Nc6 {[%clk 0:04:59.3]} 3. d4 {[%clk 0:04:36.4]} 3... cxd4 {[%clk 0:04:59.2]} 4.
Nxd4 {[%clk 0:04:36]} 4... g6 {[%clk 0:04:57.9]} 5. Nc3 {[%clk 0:04:33.6]} 5...
Bg7 {[%clk 0:04:55.9]} 6. Be3 {[%clk 0:04:30.7]} 6... Nf6 {[%clk 0:04:54.6]} 7.
f3 {[%clk 0:04:28.8]} 7... O-O {[%clk 0:04:52.9]} 8. Qd2 {[%clk 0:04:17.6]} 8...
d5 {[%clk 0:04:50.8]} 9. exd5 {[%clk 0:04:13.8]} 9... Nxd5 {[%clk 0:04:48.4]}
10. Nxd5 {[%clk 0:04:11.8]} 10... Qxd5 {[%clk 0:04:48.3]} 11. Nxc6 {[%clk
0:03:53.2]} 11... Qxc6 {[%clk 0:04:43.2]} 12. O-O-O {[%clk 0:03:47.8]} 12... Be6
{[%clk 0:04:41.5]} 13. Kb1 {[%clk 0:03:36]} 13... a5 {[%clk 0:04:29]} 14. h4
{[%clk 0:03:24.6]} 14... h5 {[%clk 0:04:24.3]} 15. Be2 {[%clk 0:03:17.4]} 15...
a4 {[%clk 0:04:15.5]} 16. a3 {[%clk 0:03:08]} 16... Qc7 {[%clk 0:03:53]} 17. g4
{[%clk 0:02:55.9]} 17... Rfd8 {[%clk 0:03:48.2]} 18. Qc1 {[%clk 0:02:44.6]}
18... Rxd1 {[%clk 0:03:44.7]} 19. Rxd1 {[%clk 0:02:44.5]} 19... Qe5 {[%clk
0:03:30.2]} 20. f4 {[%clk 0:02:32.8]} 20... Qe4 {[%clk 0:03:25.9]} 21. Bd3
{[%clk 0:02:25.8]} 21... Qc6 {[%clk 0:03:19.8]} 22. gxh5 {[%clk 0:02:16.9]}
22... gxh5 {[%clk 0:03:19.7]} 23. f5 {[%clk 0:02:12.7]} 23... Bc4 {[%clk
0:03:15.5]} 24. Bxc4 {[%clk 0:02:04.5]} 24... Qxc4 {[%clk 0:03:15.4]} 25. Qd2
{[%clk 0:01:53]} 25... Rc8 {[%clk 0:03:07.5]} 26. Qd3 {[%clk 0:01:45.9]} 26...
Qxd3 {[%clk 0:03:01.9]} 27. Rxd3 {[%clk 0:01:45.8]} 27... Bf6 {[%clk 0:03:00.8]}
28. Bg5 {[%clk 0:01:38.9]} 28... Bxg5 {[%clk 0:02:56.1]} 29. hxg5 {[%clk
0:01:38.8]} 29... Rc5 {[%clk 0:02:55.1]} 30. f6 {[%clk 0:01:27.2]} 30... exf6
{[%clk 0:02:52.2]} 31. gxf6 {[%clk 0:01:26.1]} 31... Rf5 {[%clk 0:02:51.6]} 32.
Rd8+ {[%clk 0:01:19.6]} 32... Kh7 {[%clk 0:02:49.7]} 33. Rd7 {[%clk 0:01:13.1]}
33... Rxf6 {[%clk 0:02:47.4]} 34. Rxb7 {[%clk 0:01:12.1]} 34... h4 {[%clk
0:02:47]} 35. Rb4 {[%clk 0:01:10.6]} 35... Rh6 {[%clk 0:02:45.9]} 36. Rf4 {[%clk
0:01:05.9]} 36... Kg6 {[%clk 0:02:38.5]} 37. Rg4+ {[%clk 0:00:57.9]} 37... Kf5
{[%clk 0:02:37]} 38. Rg1 {[%clk 0:00:54.3]} 38... h3 {[%clk 0:02:35.7]} 39. c4
{[%clk 0:00:50.2]} 39... h2 {[%clk 0:02:34.6]} 40. Rh1 {[%clk 0:00:49.4]} 40...
Ke4 {[%clk 0:02:32.4]} 41. Kc2 {[%clk 0:00:45.6]} 41... Kf3 {[%clk 0:02:26.2]}
42. c5 {[%clk 0:00:39.3]} 42... Kg2 {[%clk 0:02:24.4]} 43. Re1 {[%clk
0:00:28.4]} 43... h1=Q {[%clk 0:02:21.6]} 44. Rxh1 {[%clk 0:00:28.2]} 44... Kxh1
{[%clk 0:02:20.8]} 45. Kc3 {[%clk 0:00:27.8]} 45... f5 {[%clk 0:02:20.2]} 46.
Kb4 {[%clk 0:00:27.4]} 46... f4 {[%clk 0:02:19.7]} 47. Kxa4 {[%clk 0:00:26.6]}
47... f3 {[%clk 0:02:19.3]} 48. c6 {[%clk 0:00:26]} 48... Rxc6 {[%clk
0:02:17.2]} 49. b4 {[%clk 0:00:25.7]} 49... f2 {[%clk 0:02:15.6]} 50. b5 {[%clk
0:00:25.4]} 50... Rc8 {[%clk 0:02:13.3]} 51. b6 {[%clk 0:00:24.4]} 51... f1=Q
{[%clk 0:02:12.2]} 52. b7 {[%clk 0:00:23.6]} 52... Qa6+ {[%clk 0:02:11.7]} 0-1

[Event "Live Chess"]
[Site "Chess.com"]
[Date "2023.05.20"]
[Round "-"]
[White "Bob2pen"]
[Black "LodeshChess"]
[Result "1-0"]
[WhiteElo "1802"]
[BlackElo "1067"]
[TimeControl "300"]
[EndTime "13:44:48 PDT"]
[Termination "Bob2pen won by resignation"]

1. c4 {[%clk 0:04:55.6]} 1... e5 {[%clk 0:04:56.8]} 2. g3 {[%clk 0:04:54.8]}
2... c6 {[%clk 0:04:56.2]} 3. Bg2 {[%clk 0:04:53.4]} 3... d5 {[%clk 0:04:55.7]}
4. cxd5 {[%clk 0:04:49.9]} 4... cxd5 {[%clk 0:04:54.8]} 5. d4 {[%clk 0:04:48.8]}
5... e4 {[%clk 0:04:53.7]} 6. e3 {[%clk 0:04:47.7]} 6... Nc6 {[%clk 0:04:51.7]}
7. Nc3 {[%clk 0:04:46.4]} 7... Bb4 {[%clk 0:04:51]} 8. Ne2 {[%clk 0:04:45.1]}
8... Nf6 {[%clk 0:04:49.9]} 9. O-O {[%clk 0:04:42.9]} 9... O-O {[%clk
0:04:49.3]} 10. a3 {[%clk 0:04:41.7]} 10... Ba5 {[%clk 0:04:45.7]} 11. Bd2
{[%clk 0:04:40.3]} 11... a6 {[%clk 0:04:43.1]} 12. b4 {[%clk 0:04:37.4]} 12...
Bc7 {[%clk 0:04:40.7]} 13. Rc1 {[%clk 0:04:35.5]} 13... Ne7 {[%clk 0:04:30.8]}
14. Na4 {[%clk 0:04:33.1]} 14... b5 {[%clk 0:04:09.4]} 15. Qc2 {[%clk
0:04:27.6]} 15... Ra7 {[%clk 0:04:00.8]} 16. Nc5 {[%clk 0:04:20.7]} 16... Bb6
{[%clk 0:03:50.4]} 17. a4 {[%clk 0:04:05.2]} 17... Rc7 {[%clk 0:03:26.6]} 18.
axb5 {[%clk 0:04:02.4]} 18... axb5 {[%clk 0:03:25.9]} 19. Nc3 {[%clk 0:04:00.3]}
19... Bd7 {[%clk 0:03:16.1]} 20. Ra1 {[%clk 0:03:57.8]} 20... Bxc5 {[%clk
0:03:04.2]} 21. bxc5 {[%clk 0:03:49]} 21... Bc6 {[%clk 0:03:00.5]} 22. Rfb1
{[%clk 0:03:45.1]} 22... Qb8 {[%clk 0:02:56.7]} 23. Na2 {[%clk 0:03:41.2]} 23...
Ra7 {[%clk 0:02:50.6]} 24. Nb4 {[%clk 0:03:38.9]} 24... Rxa1 {[%clk 0:02:48.3]}
25. Rxa1 {[%clk 0:03:37]} 25... Qb7 {[%clk 0:02:39.6]} 26. Qa2 {[%clk
0:03:32.2]} 26... Ra8 {[%clk 0:02:36.9]} 27. Qxa8+ {[%clk 0:03:24.3]} 27... Qxa8
{[%clk 0:02:35.7]} 28. Rxa8+ {[%clk 0:03:23.1]} 28... Bxa8 {[%clk 0:02:35.3]}
29. Bf1 {[%clk 0:03:22.2]} 29... Nc6 {[%clk 0:02:23.9]} 30. Bxb5 {[%clk
0:03:19.1]} 30... Nxb4 {[%clk 0:02:21.6]} 31. Bxb4 {[%clk 0:03:17.4]} 31... Nh5
{[%clk 0:02:19.6]} 32. Bd7 {[%clk 0:03:11.5]} 32... g6 {[%clk 0:02:12.9]} 33. c6
{[%clk 0:03:09.9]} 33... Ng7 {[%clk 0:02:08.9]} 34. c7 {[%clk 0:03:06]} 34...
Bb7 {[%clk 0:01:59.8]} 35. c8=Q+ {[%clk 0:03:03.4]} 35... Bxc8 {[%clk
0:01:59.1]} 36. Bxc8 {[%clk 0:03:02.3]} 36... Ne6 {[%clk 0:01:58.4]} 37. Bxe6
{[%clk 0:03:00.3]} 37... fxe6 {[%clk 0:01:58.2]} 38. Kg2 {[%clk 0:02:57.4]} 1-0